bitfinex/quotes_BTCUSD_20240715
["timestamp","ask_amount","ask_price","bid_price","bid_amount"]
[1721074645913,0.19853459,63420.0,63419.0,0.567654]
[1721074646458,0.12786107,63420.0,63419.0,1.274678]
[1721074646859,0.12786107,63420.0,63419.0,0.643954]
[1721074647060,0.17495962,63420.0,63419.0,0.643954]
[1721074648381,0.17494881,63420.0,63419.0,0.643954]
[1721074648785,0.12762146,63420.0,63419.0,0.643954]
[1721074649447,0.12762146,63420.0,63419.0,0.959316]
[1721074651121,0.12762146,63420.0,63419.0,1.079316]
[1721074651331,0.12762146,63420.0,63419.0,1.394678]
[1721074651939,0.002,63420.0,63419.0,1.394678]
[1721074652189,0.12790049,63420.0,63419.0,1.394678]
[1721074652534,0.12785799,63420.0,63419.0,1.394678]
[1721074653146,0.12785799,63420.0,63419.0,1.274678]
[1721074653744,0.12785799,63420.0,63419.0,1.394678]
[1721074653966,0.002,63420.0,63419.0,1.394678]
[1721074655130,0.12763495,63420.0,63419.0,1.394678]
[1721074655336,0.002,63420.0,63419.0,1.394678]
[1721074655975,0.12776237,63420.0,63419.0,1.394678]
[1721074656706,0.12776237,63420.0,63419.0,1.274678]
[1721074657358,0.12776237,63420.0,63419.0,2.327702]
[1721074657359,0.002,63420.0,63419.0,2.327702]
[1721074657621,0.002,63420.0,63419.0,2.16234]
[1721074658243,0.0027728,63439.0,63429.0,0.12]
[1721074658554,0.04679673,63440.0,63429.0,0.12]
[1721074658555,0.0468103,63440.0,63434.0,0.92832]
[1721074658760,0.0027728,63440.0,63434.0,0.92732]
[1721074658963,0.12726362,63439.0,63434.0,0.92732]
[1721074659165,0.12809362,63435.0,63434.0,0.92732]
[1721074659564,0.12909362,63435.0,63434.0,0.92732]
[1721074659778,0.12909362,63435.0,63434.0,1.362608]
[1721074659961,0.12909362,63435.0,63434.0,1.242608]
[1721074660293,0.12909362,63435.0,63434.0,1.241608]
[1721074660496,0.12909362,63435.0,63434.0,1.24150682]
[1721074660937,0.12809362,63435.0,63434.0,1.24150682]
[1721074661142,0.12809362,63435.0,63434.0,1.25350682]
[1721074661557,0.12802447,63435.0,63434.0,1.26650682]
[1721074661724,0.12802447,63435.0,63434.0,1.24150682]
[1721074661973,0.12800944,63435.0,63434.0,1.26850682]
[1721074662438,0.00083,63435.0,63434.0,1.26850682]
[1721074663889,0.00083,63435.0,63434.0,1.25550682]
[1721074664536,0.00083,63435.0,63434.0,1.26950682]
[1721074665476,0.00083,63435.0,63434.0,1.38950682]
[1721074666458,0.00083,63435.0,63434.0,1.70479482]
[1721074666663,0.00083,63435.0,63434.0,1.72779482]
[1721074667238,0.00083,63435.0,63434.0,1.71379482]
[1721074667903,0.00083,63435.0,63434.0,1.39850682]
[1721074668115,0.00083,63435.0,63434.0,1.37550682]
[1721074668337,0.00083,63435.0,63434.0,1.26950682]
[1721074668760,0.00083,63435.0,63434.0,1.38950682]
[1721074669515,0.00083,63435.0,63434.0,1.37550682]
[1721074669717,0.00083,63435.0,63434.0,1.38950682]
[1721074669918,0.00083,63435.0,63434.0,1.37550682]
[1721074670489,0.00083,63435.0,63434.0,1.38950682]
[1721074671418,0.00083,63435.0,63434.0,1.37550682]
[1721074672130,0.00083,63435.0,63434.0,1.38950682]
[1721074672300,0.00083,63435.0,63434.0,1.48120682]
[1721074673124,0.00083,63435.0,63434.0,1.46720682]
[1721074673365,0.00083,63435.0,63434.0,1.76849482]
[1721074673566,0.00083,63435.0,63434.0,1.80549482]
[1721074674502,0.00083,63435.0,63434.0,1.81949482]
[1721074675955,0.00083,63435.0,63434.0,1.91949482]
[1721074678806,0.00083,63435.0,63434.0,1.92581282]
[1721074680637,0.00083,63435.0,63434.0,1.91949482]
[1721074682470,0.00083,63435.0,63434.0,1.92191482]
[1721074686831,0.00083,63435.0,63434.0,2.33720282]
[1721074687661,0.13562206,63454.0,63453.0,0.787982]
[1721074687860,0.20774153,63454.0,63453.0,0.879682]
[1721074688464,0.12804153,63454.0,63453.0,0.879682]
[1721074688672,0.12804153,63454.0,63453.0,1.194875]
[1721074688868,0.14018601,63454.0,63453.0,1.194875]
[1721074689523,0.1398874,63454.0,63453.0,1.194875]
[1721074690522,0.1398874,63454.0,63453.0,1.208875]
[1721074690719,0.12774292,63454.0,63453.0,1.208875]
[1721074690928,0.12777548,63454.0,63453.0,0.014]
[1721074691126,0.26867548,63454.0,63453.0,0.014]
[1721074691589,0.26867548,63454.0,63453.0,0.028]
[1721074691788,0.54647746,63454.0,63453.0,0.028]
[1721074692001,0.42647746,63454.0,63453.0,0.028]
[1721074692358,0.1409,63451.0,63449.0,0.157606]
[1721074692567,0.0794,63450.0,63449.0,0.157606]
[1721074692776,0.2676596,63450.0,63449.0,0.157606]
[1721074692947,0.42530965,63450.0,63448.0,0.157609]
[1721074693181,0.1409,63448.0,63443.0,0.315242]
[1721074693441,0.1267596,63447.0,63445.0,0.157615]
[1721074693681,0.1267596,63447.0,63443.0,0.315242]
[1721074693682,0.1267596,63446.0,63443.0,0.315242]
[1721074693904,0.1409,63448.0,63443.0,0.315242]
[1721074693905,0.1409,63448.0,63445.0,0.157616]
[1721074694125,0.12651532,63447.0,63445.0,0.157616]
[1721074694342,0.12651532,63446.0,63445.0,0.157616]
[1721074694767,0.26741532,63446.0,63445.0,0.157616]
[1721074695004,0.26741532,63446.0,63445.0,0.472849]
[1721074695720,0.26731305,63446.0,63445.0,0.486849]
[1721074695927,0.26731305,63446.0,63445.0,0.472849]
[1721074696767,0.26731305,63446.0,63445.0,0.486849]
[1721074697558,0.26731305,63446.0,63445.0,0.500849]
[1721074697807,0.26731305,63446.0,63445.0,0.185616]
[1721074698006,0.26731305,63446.0,63445.0,0.028]
[1721074698872,0.26731305,63446.0,63445.0,0.014]
[1721074699048,0.26787455,63446.0,63445.0,0.014]
[1721074699289,0.26787455,63446.0,63445.0,0.022]
[1721074699512,0.26787455,63446.0,63442.0,0.157623]
[1721074699513,0.26789217,63446.0,63442.0,0.157623]
[1721074699733,0.14567051,63446.0,63445.0,0.008]
[1721074699923,0.27182632,63446.0,63445.0,0.008]
[1721074700045,0.27182632,63446.0,63442.0,0.157623]
[1721074700244,0.0794,63444.0,63442.0,0.157623]
[1721074700470,0.12615581,63443.0,63442.0,0.157623]
[1721074700898,0.0794,63444.0,63442.0,0.157623]
[1721074701099,0.12620439,63443.0,63442.0,0.157623]
[1721074702028,0.12620439,63443.0,63441.0,0.157626]
[1721074702225,0.0794,63444.0,63441.0,0.157626]
[1721074702432,0.17291858,63443.0,63441.0,0.157626]
[1721074702629,0.17291858,63443.0,63435.0,0.157641]
[1721074702630,0.26701718,63442.0,63435.0,0.157641]
[1721074702857,0.26701718,63442.0,63436.0,0.257638]
[1721074702858,0.17291858,63441.0,63436.0,0.257638]
[1721074703043,0.12611718,63440.0,63437.0,0.157636]
[1721074703219,0.0468014,63441.0,63440.0,0.472887]
[1721074703421,0.07020211,63443.0,63441.0,0.472879]
[1721074703422,0.12616029,63442.0,63441.0,0.472879]
[1721074703623,0.12616528,63442.0,63441.0,0.472879]
[1721074705027,0.0468014,63444.0,63442.0,0.315248]
[1721074705234,0.0468014,63444.0,63442.0,0.325248]
[1721074705436,0.12610157,63443.0,63442.0,0.472872]
[1721074705840,0.12610157,63443.0,63442.0,0.78812]
[1721074706279,0.12610157,63443.0,63442.0,1.732216]
[1721074706465,0.00083,63446.0,63445.0,0.592849]
[1721074706729,0.00083,63446.0,63445.0,1.303982]
[1721074706925,0.00083,63446.0,63445.0,1.669215]
[1721074707150,0.00083,63446.0,63445.0,1.719215]
[1721074707702,0.00083,63446.0,63445.0,2.034448]
[1721074707937,0.00083,63446.0,63445.0,2.084448]
[1721074708134,0.00083,63446.0,63445.0,2.034448]
[1721074708336,0.00083,63446.0,63445.0,2.084448]
[1721074708562,0.00083,63446.0,63445.0,2.134448]
[1721074709075,0.00083,63446.0,63445.0,2.513681]
[1721074709445,0.00083,63446.0,63445.0,2.74468401]
[1721074709650,0.00083,63446.0,63445.0,2.79190854]
[1721074709852,0.00083,63446.0,63445.0,2.77787322]
[1721074710146,0.00083,63465.0,63461.0,1.588193]
[1721074710288,0.00083,63465.0,63461.0,2.134093]
[1721074710505,0.00083,63465.0,63464.0,0.836308]
[1721074710861,0.00083,63484.0,63464.0,0.836308]
[1721074710862,0.00835,63483.0,63482.0,0.736173]
[1721074711060,0.00835,63483.0,63482.0,1.595571]
[1721074711239,0.00835,63483.0,63482.0,1.93362]
[1721074711454,0.00083,63484.0,63483.0,1.732742]
[1721074711656,0.00835,63487.0,63486.0,0.571115]
[1721074711864,0.00835,63487.0,63486.0,1.67832291]
[1721074712061,0.00835,63487.0,63486.0,2.11635291]
[1721074712279,0.00835,63492.0,63489.0,0.27]
[1721074712495,0.00835,63499.0,63498.0,0.521085]
[1721074712698,0.00835,63499.0,63498.0,2.11608291]
[1721074712905,0.00835,63499.0,63498.0,2.1896593]
[1721074713121,0.00835,63499.0,63498.0,2.0696593]
[1721074713310,0.00835,63499.0,63498.0,2.1896593]
[1721074713660,0.00835,63499.0,63498.0,2.147265]
[1721074713862,0.00835,63499.0,63498.0,2.097265]
[1721074714086,0.00835,63499.0,63498.0,1.768295]
[1721074714453,0.00835,63499.0,63498.0,1.782295]
[1721074714844,0.00835,63499.0,63498.0,1.768295]
[1721074715232,0.00835,63499.0,63498.0,1.782295]
[1721074716213,0.00835,63499.0,63498.0,2.097265]
[1721074716391,0.00835,63499.0,63498.0,2.083265]
[1721074716797,0.00835,63499.0,63498.0,2.147265]
[1721074717201,0.00834,63506.0,63505.0,1.637207]
[1721074717428,0.00834,63506.0,63505.0,1.989507]
[1721074717641,0.00834,63506.0,63505.0,2.055007]
[1721074718059,0.00834,63506.0,63505.0,2.133107]
[1721074718262,0.00834,63506.0,63505.0,2.183107]
[1721074718458,0.00834,63506.0,63505.0,2.211107]
[1721074719099,0.00834,63506.0,63505.0,2.161107]
[1721074719335,0.00834,63506.0,63505.0,2.211107]
[1721074720088,0.00834,63506.0,63505.0,2.161107]
[1721074720267,0.00834,63506.0,63505.0,2.111107]
[1721074720507,0.00834,63506.0,63505.0,2.161107]
[1721074720707,0.00834,63506.0,63505.0,1.796172]
[1721074720900,0.00834,63506.0,63505.0,2.111107]
[1721074721103,0.00834,63506.0,63505.0,2.061107]
[1721074721432,0.00834,63506.0,63505.0,2.111107]
[1721074721859,0.00834,63506.0,63505.0,2.061107]
[1721074722060,0.00834,63506.0,63505.0,2.111107]
[1721074722243,0.00834,63506.0,63505.0,1.796172]
[1721074722452,0.00834,63506.0,63505.0,1.746172]
[1721074722680,0.00834,63506.0,63505.0,1.718072]
[1721074722998,0.00834,63506.0,63505.0,1.660912]
[1721074724512,0.00834,63506.0,63505.0,1.710912]
[1721074724667,0.00834,63506.0,63505.0,2.025847]
[1721074725285,0.00834,63506.0,63505.0,2.075847]
[1721074725697,0.00834,63506.0,63505.0,3.179582]
[1721074725904,0.00834,63506.0,63505.0,2.154647]
[1721074726904,0.00834,63506.0,63505.0,2.469582]
[1721074727104,0.00834,63506.0,63505.0,2.190282]
[1721074727350,0.00834,63506.0,63505.0,2.054647]
[1721074727967,0.00834,63506.0,63505.0,2.104647]
[1721074728186,0.00834,63506.0,63505.0,2.054647]
[1721074728569,0.00834,63506.0,63505.0,2.104647]
[1721074729918,0.00834,63506.0,63505.0,1.875347]
[1721074730093,0.00834,63506.0,63505.0,2.104647]
[1721074730303,0.00834,63506.0,63505.0,2.054647]
[1721074730500,0.00834,63506.0,63505.0,2.104647]
[1721074730845,0.00834,63506.0,63505.0,2.054647]
[1721074730982,0.00834,63506.0,63505.0,1.975847]
[1721074731363,0.00834,63506.0,63505.0,1.925847]
[1721074731568,0.00834,63506.0,63505.0,1.975847]
[1721074731765,0.00834,63506.0,63505.0,2.025847]
[1721074732170,0.00834,63506.0,63505.0,2.075847]
[1721074733267,0.00834,63506.0,63505.0,2.390782]
[1721074733632,0.00834,63517.0,63516.0,1.536964]
[1721074733838,0.00834,63517.0,63516.0,1.889264]
[1721074734713,0.00834,63517.0,63516.0,1.949464]
[1721074735395,0.00834,63517.0,63516.0,1.963464]
[1721074736338,0.00834,63517.0,63516.0,2.041064]
[1721074736451,0.00834,63517.0,63516.0,2.055064]
[1721074737511,0.00834,63517.0,63516.0,2.105064]
[1721074738353,0.00834,63517.0,63516.0,2.055064]
[1721074738922,0.00834,63517.0,63516.0,1.977464]
[1721074739553,0.00834,63517.0,63516.0,1.963464]
[1721074739876,0.00834,63517.0,63516.0,1.949464]
[1721074740368,0.00834,63517.0,63516.0,1.963464]
[1721074740577,0.00834,63517.0,63516.0,1.949464]
[1721074740935,0.00834,63517.0,63516.0,1.977464]
[1721074741336,0.02054449,63517.0,63516.0,1.963464]
[1721074741547,0.02054449,63517.0,63516.0,2.027464]
[1721074741966,0.02054449,63517.0,63516.0,1.977464]
[1721074742171,0.02054449,63517.0,63516.0,2.027464]
[1721074742551,0.00834,63547.0,63516.0,2.027464]
[1721074742552,0.0762,63539.0,63529.0,0.12]
[1721074742760,0.0762,63539.0,63517.0,0.0776]
[1721074742761,0.72613395,63538.0,63537.0,0.472165]
[1721074742989,0.72613395,63538.0,63537.0,0.786942]
[1721074742990,0.13165975,63538.0,63537.0,0.786942]
[1721074743198,0.38997594,63538.0,63537.0,0.786942]
[1721074743384,0.2415521,63538.0,63537.0,0.786942]
[1721074743623,0.13167373,63538.0,63537.0,0.786942]
[1721074743750,0.124769,63538.0,63537.0,0.786942]
[1721074744521,0.124769,63538.0,63537.0,1.101719]
[1721074744689,0.124769,63538.0,63537.0,1.111719]
[1721074745014,0.124769,63538.0,63537.0,1.122719]
[1721074745441,0.1399,63545.0,63544.0,0.786855]
[1721074745678,0.37295299,63545.0,63544.0,0.786855]
[1721074745823,0.26389159,63545.0,63544.0,1.101597]
[1721074746027,0.12399159,63545.0,63544.0,1.101597]
[1721074746205,0.12399159,63546.0,63545.0,1.101579]
[1721074746407,0.12353844,63546.0,63545.0,1.101579]
[1721074747909,0.12353844,63546.0,63545.0,0.814842]
[1721074748522,0.12353844,63546.0,63545.0,0.800842]
[1721074749148,0.18423844,63546.0,63545.0,0.800842]
[1721074749526,0.19128553,63546.0,63545.0,0.814842]
[1721074749733,0.18423844,63546.0,63545.0,0.814842]
[1721074749933,0.18423844,63546.0,63545.0,0.800842]
[1721074750748,0.18423844,63546.0,63545.0,0.814842]
[1721074751156,0.18278866,63546.0,63545.0,0.814842]
[1721074752700,0.12208866,63546.0,63545.0,1.129579]
[1721074753657,0.12208866,63546.0,63545.0,1.416316]
[1721074753883,0.00834,63547.0,63546.0,0.78683]
[1721074754085,0.00834,63547.0,63546.0,1.124562]
[1721074754291,0.00834,63547.0,63546.0,1.659294]
[1721074754641,0.00834,63547.0,63546.0,1.539294]
[1721074754967,0.00834,63547.0,63546.0,1.659294]
[1721074755405,0.00834,63547.0,63546.0,1.673294]
[1721074755608,0.00834,63547.0,63546.0,2.102826]
[1721074755811,0.00834,63547.0,63546.0,2.178626]
[1721074755991,0.0127607,63567.0,63562.0,0.786632]
[1721074756192,0.0127607,63567.0,63562.0,1.768238]
[1721074757170,0.0127607,63567.0,63562.0,1.902238]
[1721074757523,0.0127607,63567.0,63562.0,1.952238]
[1721074758035,0.00834,63570.0,63569.0,0.17]
[1721074758236,0.00834,63570.0,63569.0,2.20759641]
[1721074758439,0.00833,63581.0,63580.0,0.78641]
[1721074758644,0.00833,63581.0,63580.0,0.88641]
[1721074758835,0.00833,63581.0,63580.0,1.200974]
[1721074759829,0.00833,63581.0,63580.0,1.214974]
[1721074760105,0.00833,63581.0,63580.0,0.90041]
[1721074760339,0.00833,63581.0,63580.0,0.585846]
[1721074760340,0.08883,63581.0,63580.0,0.585846]
[1721074760587,0.15143,63581.0,63580.0,0.114]
[1721074760820,0.15868114,63581.0,63580.0,0.171282]
[1721074761036,0.15868114,63581.0,63580.0,0.91441]
[1721074761249,0.01558114,63581.0,63580.0,1.214974]
[1721074761457,0.00833,63581.0,63580.0,1.214974]
[1721074761672,0.00833,63581.0,63580.0,1.228974]
[1721074762511,0.00833,63581.0,63580.0,1.200974]
[1721074762711,0.00833,63581.0,63580.0,1.214974]
[1721074762911,0.00833,63581.0,63580.0,1.228974]
[1721074763376,0.00833,63581.0,63580.0,1.214974]
[1721074763603,0.00833,63581.0,63580.0,0.91441]
[1721074764480,0.00833,63581.0,63580.0,1.200974]
[1721074764868,0.00833,63581.0,63580.0,1.214974]
[1721074765105,0.00833,63581.0,63580.0,0.88641]
[1721074765577,0.00833,63581.0,63580.0,0.90041]
[1721074765789,0.00833,63581.0,63580.0,0.88641]
[1721074765995,0.00833,63581.0,63580.0,1.228974]
[1721074766538,0.00833,63581.0,63580.0,0.91441]
[1721074767762,0.00833,63581.0,63580.0,1.228974]
[1721074768148,0.00833,63581.0,63580.0,1.663538]
[1721074768405,0.00833,63581.0,63580.0,1.748038]
[1721074768893,0.00833,63581.0,63580.0,1.91106]
[1721074769157,0.00833,63581.0,63580.0,1.99256]
[1721074769396,0.14983,63609.0,63585.0,1.750725]
[1721074769612,0.14983,63609.0,63585.0,2.19879529]
[1721074769827,0.00833,63609.0,63608.0,0.786062]
[1721074770038,0.00833,63609.0,63608.0,1.329787]
[1721074770467,0.00833,63609.0,63608.0,1.937212]
[1721074770703,0.00833,63609.0,63608.0,2.28122991]
[1721074770885,0.00833,63609.0,63608.0,2.54565491]
[1721074771185,0.00833,63609.0,63608.0,1.452787]
[1721074771401,0.00833,63609.0,63608.0,0.571637]
[1721074771613,0.00833,63609.0,63608.0,0.257212]
[1721074771820,0.00833,63609.0,63608.0,0.571637]
[1721074772236,0.00833,63609.0,63608.0,0.585637]
[1721074772440,0.00833,63609.0,63608.0,0.014]
[1721074772659,0.00833,63609.0,63600.0,0.1]
[1721074772872,0.00833,63609.0,63605.0,0.157218]
[1721074773089,0.00833,63609.0,63591.0,0.7958]
[1721074773090,0.1415,63608.0,63591.0,0.7958]
[1721074773315,0.1415,63608.0,63607.0,0.157215]
[1721074773529,0.1415,63608.0,63607.0,0.471645]
[1721074773759,0.00833,63609.0,63599.0,0.314467]
[1721074773760,0.00833,63609.0,63608.0,0.786062]
[1721074773971,0.00833,63609.0,63608.0,0.485637]
[1721074774184,0.00833,63609.0,63608.0,0.800062]
[1721074774399,0.00833,63609.0,63608.0,0.786062]
[1721074774823,0.00833,63609.0,63608.0,0.157212]
[1721074775272,0.00833,63609.0,63608.0,0.485637]
[1721074775478,0.00833,63609.0,63608.0,0.800062]
[1721074775960,0.00833,63609.0,63608.0,1.114487]
[1721074776174,0.00833,63609.0,63608.0,1.671912]
[1721074776376,0.00833,63609.0,63608.0,1.565912]
[1721074776786,0.00833,63609.0,63608.0,1.671912]
[1721074776998,0.00833,63609.0,63608.0,1.537912]
[1721074777212,0.00833,63609.0,63608.0,1.565912]
[1721074777415,0.00833,63609.0,63608.0,1.685912]
[1721074777626,0.00833,63609.0,63608.0,1.657912]
[1721074777832,0.00833,63609.0,63608.0,1.671912]
[1721074778038,0.00833,63609.0,63608.0,1.565912]
[1721074778306,0.00833,63609.0,63608.0,2.62675491]
[1721074778538,0.08643,63627.0,63608.0,2.62675491]
[1721074778539,0.00833,63627.0,63626.0,1.727812]
[1721074778746,0.00833,63627.0,63626.0,1.266476]
[1721074778953,0.00833,63627.0,63626.0,1.366476]
[1721074779161,0.00833,63627.0,63626.0,1.284776]
[1721074780199,0.00833,63627.0,63626.0,1.223176]
[1721074780406,0.00833,63627.0,63626.0,0.171168]
[1721074780610,0.15173,63627.0,63626.0,0.171168]
[1721074780807,0.15173,63627.0,63626.0,0.185168]
[1721074781020,0.15173,63627.0,63626.0,0.157168]
[1721074781235,0.15173,63627.0,63626.0,0.014]
[1721074781450,0.15173,63627.0,63626.0,0.028]
[1721074782059,0.15173,63627.0,63626.0,0.042]
[1721074782293,0.15173,63627.0,63626.0,0.199168]
[1721074782495,0.15173,63627.0,63626.0,0.028]
[1721074782853,0.15173,63627.0,63626.0,0.042]
[1721074783053,0.00833,63627.0,63626.0,0.199168]
[1721074783634,0.00833,63627.0,63626.0,0.513504]
[1721074783854,0.00833,63627.0,63626.0,0.82784]
[1721074784233,0.00833,63627.0,63626.0,0.042]
[1721074784493,0.00833,63627.0,63626.0,0.199168]
[1721074785079,0.00833,63627.0,63626.0,0.513504]
[1721074786329,0.00833,63627.0,63626.0,0.042]
[1721074786860,0.00833,63627.0,63626.0,0.199168]
[1721074787317,0.45580924,63627.0,63626.0,0.042]
[1721074787529,0.89258503,63627.0,63626.0,0.042]
[1721074787752,0.12,63621.0,63614.0,0.157197]
[1721074787963,0.14935903,63620.0,63612.0,0.157201]
[1721074788195,0.14935903,63620.0,63600.0,0.00306353]
[1721074788196,0.1434,63613.0,63600.0,0.00306353]
[1721074788662,0.0196778,63612.0,63607.0,0.157214]
[1721074788873,0.1434,63613.0,63610.0,0.314413]
[1721074789076,0.01962791,63612.0,63609.0,0.157209]
[1721074789269,0.01962791,63612.0,63596.0,0.285]
[1721074789469,0.01962791,63612.0,63604.0,0.31444]
[1721074789607,0.01962791,63612.0,63611.0,0.157205]
[1721074789995,0.01962791,63616.0,63611.0,0.157205]
[1721074790309,0.001,63612.0,63610.0,0.157207]
[1721074790714,0.001,63612.0,63608.0,0.314425]
[1721074790715,0.12,63617.0,63611.0,0.157205]
[1721074791036,0.14034973,63616.0,63611.0,0.157205]
[1721074791237,0.001,63612.0,63611.0,0.168205]
[1721074791543,0.001,63612.0,63611.0,0.011]
[1721074791734,0.002,63612.0,63611.0,0.011]
[1721074791950,0.02026786,63612.0,63611.0,0.011]
[1721074792345,0.01926786,63612.0,63608.0,0.157212]
[1721074792522,0.01926786,63612.0,63606.0,0.314433]
[1721074792523,0.01826786,63611.0,63606.0,0.314433]
[1721074792724,0.01826786,63611.0,63609.0,0.157208]
[1721074793040,0.01826786,63611.0,63610.0,0.157207]
[1721074793284,0.01826786,63611.0,63610.0,0.471622]
[1721074793404,0.01826786,63611.0,63610.0,0.157207]
[1721074793803,0.01826786,63611.0,63610.0,1.100452]
[1721074794018,0.002,63612.0,63611.0,0.471616]
[1721074794019,0.001,63612.0,63611.0,0.471616]
[1721074794224,0.001,63612.0,63611.0,1.099438]
[1721074794419,0.0370028,63612.0,63611.0,1.099438]
[1721074794886,0.0360028,63612.0,63611.0,1.099438]
[1721074795083,0.14,63619.0,63617.0,0.15719]
[1721074795285,0.16212848,63618.0,63615.0,0.47158]
[1721074795504,0.16212848,63617.0,63615.0,0.157193]
[1721074795711,0.16212848,63616.0,63615.0,0.156193]
[1721074795949,0.16212848,63616.0,63615.0,0.155193]
[1721074796947,0.16212848,63616.0,63612.0,0.314403]
[1721074797108,0.16212848,63615.0,63612.0,0.314403]
[1721074797313,0.16212848,63614.0,63613.0,0.1572]
[1721074797519,0.16212848,63614.0,63611.0,0.000913]
[1721074797520,0.12,63612.0,63611.0,0.000913]
[1721074797716,0.28212848,63612.0,63611.0,0.000913]
[1721074797984,0.03742182,63612.0,63611.0,0.000913]
[1721074798110,0.28628811,63612.0,63611.0,0.000913]
[1721074798903,0.40628811,63612.0,63611.0,0.000913]
[1721074799103,0.28728811,63612.0,63611.0,0.000913]
[1721074799307,0.28628811,63612.0,63611.0,0.000913]
[1721074799757,0.28828811,63612.0,63611.0,0.009913]
[1721074800202,0.44397571,63612.0,63611.0,0.009913]
[1721074800417,0.28828811,63612.0,63611.0,0.009913]
[1721074800614,0.28828811,63612.0,63611.0,0.481529]
[1721074800615,0.16462219,63612.0,63611.0,0.481529]
[1721074800761,0.03942182,63612.0,63611.0,0.481529]
[1721074800964,0.16554341,63612.0,63611.0,0.481529]
[1721074801432,0.16550084,63612.0,63611.0,0.481529]
[1721074801952,0.16550084,63612.0,63611.0,0.167118]
[1721074803525,0.16512952,63612.0,63611.0,0.167118]
[1721074804114,0.16512952,63612.0,63611.0,0.009913]
[1721074804311,0.16512952,63612.0,63611.0,0.167118]
[1721074804513,0.16512952,63612.0,63611.0,0.481529]
[1721074805243,0.16512952,63612.0,63611.0,1.45200338]
[1721074805462,0.002,63612.0,63611.0,2.27441438]
[1721074805660,0.002,63612.0,63611.0,2.22441438]
[1721074805816,0.002,63612.0,63611.0,1.973362]
[1721074806021,0.00833,63627.0,63622.0,0.314355]
[1721074806230,0.00833,63627.0,63624.0,0.156171]
[1721074806231,0.17893551,63626.0,63624.0,0.156171]
[1721074806629,0.12,63623.0,63616.0,0.157191]
[1721074806793,0.12,63617.0,63612.0,0.157202]
[1721074806995,0.17894022,63616.0,63615.0,0.157195]
[1721074807197,0.17894022,63616.0,63615.0,0.533486]
[1721074807419,0.17894022,63616.0,63615.0,1.162268]
[1721074807639,0.17894022,63616.0,63615.0,1.185268]
[1721074807841,0.17894022,63616.0,63611.0,0.009913]
[1721074807842,0.17894022,63616.0,63612.0,0.314402]
[1721074808041,0.00392949,63626.0,63612.0,0.314402]
[1721074808042,0.17894022,63615.0,63614.0,0.157198]
[1721074808251,0.17894022,63615.0,63614.0,0.471594]
[1721074808822,0.17894022,63615.0,63611.0,0.000913]
[1721074808824,0.12,63612.0,63611.0,0.000913]
[1721074809034,0.17894022,63612.0,63611.0,0.158118]
[1721074809233,0.17894022,63612.0,63611.0,0.78694]
[1721074809431,0.17894022,63612.0,63611.0,0.472529]
[1721074809637,0.29734146,63612.0,63611.0,0.000913]
[1721074809861,0.35804146,63612.0,63611.0,0.000913]
[1721074810393,0.80904146,63612.0,63611.0,0.014913]
[1721074810590,1.9578491,63612.0,63611.0,0.014913]
[1721074810791,1.9578491,63612.0,63611.0,0.022913]
[1721074810792,1.4153105,63612.0,63611.0,0.022913]
[1721074811016,1.48492256,63612.0,63611.0,0.022913]
[1721074811339,1.4153105,63612.0,63611.0,0.022913]
[1721074811533,1.16954403,63612.0,63611.0,0.008913]
[1721074811784,1.4143105,63612.0,63611.0,0.008913]
[1721074811976,1.0989045,63612.0,63611.0,0.006913]
[1721074812182,0.9417015,63612.0,63611.0,0.006913]
[1721074812359,0.9427015,63612.0,63611.0,0.006913]
[1721074812573,0.40811603,63612.0,63611.0,0.158118]
[1721074812851,0.1768579,63612.0,63611.0,0.000913]
[1721074813063,0.18204924,63612.0,63611.0,0.000913]
[1721074813259,0.17604924,63612.0,63611.0,0.000913]
[1721074813462,0.22288951,63612.0,63611.0,0.000913]
[1721074813684,0.18104924,63612.0,63611.0,0.000913]
[1721074813880,0.25130964,63612.0,63611.0,0.000913]
[1721074814292,0.30104924,63612.0,63611.0,0.000913]
[1721074814504,0.18104924,63612.0,63611.0,0.000913]
[1721074814976,0.25036102,63612.0,63611.0,0.000913]
[1721074815371,0.25036102,63612.0,63611.0,0.477529]
[1721074815556,0.18004924,63612.0,63611.0,0.477529]
[1721074815762,0.17928271,63612.0,63611.0,0.477529]
[1721074815917,0.17928271,63612.0,63611.0,0.79594]
[1721074816145,0.17928271,63612.0,63611.0,1.170351]
[1721074816367,0.12660298,63612.0,63611.0,1.170351]
[1721074816587,0.12660298,63612.0,63611.0,1.704762]
[1721074816588,0.004,63612.0,63611.0,1.704762]
[1721074816807,0.004,63612.0,63611.0,1.857862]
[1721074817208,0.00833,63627.0,63626.0,0.471504]
[1721074817503,0.13108044,63627.0,63626.0,0.84584]
[1721074817706,0.15743083,63627.0,63626.0,0.84584]
[1721074818089,0.15743083,63627.0,63626.0,1.183176]
[1721074818296,0.13108044,63627.0,63626.0,1.183176]
[1721074818721,0.00833,63627.0,63626.0,1.667512]
[1721074819813,0.00833,63627.0,63626.0,1.675512]
[1721074819933,0.00933,63627.0,63626.0,1.205176]
[1721074820140,0.00933,63627.0,63626.0,1.197176]
[1721074820338,0.00933,63627.0,63626.0,0.471504]
[1721074820729,0.13417802,63627.0,63626.0,0.008]
[1721074820881,0.16935356,63627.0,63626.0,0.179168]
[1721074821266,0.16935356,63627.0,63626.0,0.493504]
[1721074821469,0.13417802,63627.0,63626.0,0.80784]
[1721074821914,0.13417802,63627.0,63626.0,1.122176]
[1721074822325,0.13217802,63627.0,63626.0,1.296476]
[1721074822532,0.00833,63627.0,63626.0,1.319476]
[1721074822729,0.00933,63627.0,63626.0,1.326476]
[1721074822904,0.00833,63627.0,63626.0,1.199476]
[1721074823124,0.00833,63627.0,63626.0,1.185476]